fUSD/lending_fUSD_20260109
["ID","MTS","AMOUNT","RATE_DAILY","PERIOD"]
[401114541,1767942647448,-150.0,0.00017973,2]
[401114542,1767942647457,-150.0,0.00017973,2]
[401114543,1767942647466,-526.62,0.00017979,2]
[401114544,1767942647475,-500.0,0.00017979,2]
[401114545,1767942647485,-500.0,0.00017979,2]
[401114546,1767942647498,-500.0,0.00017979,2]
[401114547,1767942647507,-500.0,0.00017979,2]
[401114548,1767942647517,-500.0,0.00017979,2]
[401114549,1767942647527,-239.27383128,0.0001799,2]
[401114550,1767942647540,-239.27383128,0.0001799,2]
[401114551,1767942647551,-164.76,0.0001799,2]
[401114553,1767942647560,-567.0,0.00017994,2]
[401114554,1767942647570,-8727.1568944,0.00017998,2]
[401114557,1767942647580,-151.0,0.00017998,2]
[401114558,1767942647590,-230.35860744,0.00017998,2]
[401114561,1767942647599,-158.2720892,0.00017998,2]
[401114563,1767942647608,-152.0,0.00017998,2]
[401114564,1767942647618,-152.0,0.00017998,2]
[401114566,1767942647627,-152.0,0.00017998,2]
[401114568,1767942647636,-152.0,0.00017998,2]
[401114571,1767942647646,-152.0,0.00017998,2]
[401114573,1767942647655,-152.0,0.00017998,2]
[401114575,1767942647667,-152.0,0.00017998,2]
[401114576,1767942647676,-152.0,0.00017998,2]
[401114578,1767942647685,-152.0,0.00017998,2]
[401114580,1767942647695,-152.0,0.00017998,2]
[401114582,1767942647704,-152.0,0.00017998,2]
[401114584,1767942647713,-152.0,0.00017998,2]
[401114586,1767942647722,-369.03106911,0.00017999,2]
[401114588,1767942647732,-1006.3197,0.00017999,2]
[401114590,1767942647741,-666.0,0.00017999,2]
[401114592,1767942647750,-300.0,0.00017999,2]
[401114594,1767942647759,-300.0,0.00017999,2]
[401114596,1767942647768,-300.0,0.00017999,2]
[401114598,1767942647779,-300.0,0.00017999,2]
[401114600,1767942647788,-666.0,0.00017999,2]
[401114602,1767942647797,-300.0,0.00017999,2]
[401114604,1767942647807,-666.0,0.00017999,2]
[401114606,1767942647815,-7824.46415532,0.00017999,2]
[401114608,1767942647825,-300.0,0.00017999,2]
[401114610,1767942647834,-300.0,0.00017999,2]
[401114612,1767942647844,-158.0,0.00018,2]
[401114614,1767942647854,-152.0,0.00018,2]
[401114616,1767942647864,-151.0,0.00018,2]
[401114618,1767942647873,-151.0,0.00018,2]
[401114620,1767942647883,-151.0,0.00018,2]
[401114622,1767942647892,-151.0,0.00018,2]
[401114624,1767942647901,-151.0,0.00018,2]
[401114626,1767942647910,-151.0,0.00018,2]
[401114628,1767942647919,-151.0,0.00018,2]
[401114630,1767942647929,-151.0,0.00018,2]
[401114632,1767942647938,-151.0,0.00018,2]
[401114634,1767942647955,-151.0,0.00018,2]
[401114636,1767942647969,-151.0,0.00018,2]
[401114638,1767942647979,-151.0,0.00018,2]
[401114640,1767942647988,-151.0,0.00018,2]
[401114642,1767942647997,-151.0,0.00018,2]
[401114644,1767942648007,-151.0,0.00018,2]
[401114646,1767942648016,-151.0,0.00018,2]
[401114648,1767942648026,-151.0,0.00018,2]
[401114650,1767942648035,-151.0,0.00018,2]
[401114651,1767942648044,-151.0,0.00018,2]
[401114653,1767942648054,-151.0,0.00018,2]
[401114656,1767942648063,-151.0,0.00018,2]
[401114657,1767942648072,-151.0,0.00018,2]
[401114659,1767942648082,-151.0,0.00018,2]
[401114661,1767942648092,-155.01996304,0.00018,2]
[401114663,1767942648101,-257.54647739,0.00018,2]
[401114666,1767942648115,-151.0,0.00018,2]
[401114668,1767942648125,-152.0,0.00018,2]
[401114670,1767942648134,-152.0,0.00018,2]
[401114672,1767942648144,-151.0,0.00018,2]
[401114674,1767942648153,-151.0,0.00018,2]
[401114676,1767942648163,-151.0,0.00018,2]
[401114678,1767942648173,-151.0,0.00018,2]
[401114680,1767942648183,-151.0,0.00018,2]
[401114682,1767942648192,-151.0,0.00018,2]
[401114684,1767942648201,-151.0,0.00018,2]
[401114686,1767942648210,-151.0,0.00018,2]
[401114688,1767942648219,-151.0,0.00018,2]
[401114690,1767942648232,-151.0,0.00018,2]
[401114692,1767942648240,-151.0,0.00018,2]
[401114694,1767942648251,-151.0,0.00018,2]
[401114697,1767942648261,-151.0,0.00018,2]
[401114698,1767942648271,-151.0,0.00018,2]
[401114701,1767942648280,-151.0,0.00018,2]
[401114702,1767942648290,-151.0,0.00018,2]
[401114705,1767942648300,-151.0,0.00018,2]
[401114707,1767942648310,-151.0,0.00018,2]
[401114709,1767942648319,-151.0,0.00018,2]
[401114711,1767942648329,-151.0,0.00018,2]
[401114713,1767942648338,-151.0,0.00018,2]
[401114715,1767942648347,-151.0,0.00018,2]
[401114717,1767942648357,-153.32856612,0.00018,2]
[401114719,1767942648366,-150.0,0.00018,2]
[401114720,1767942648375,-150.0,0.00018,2]
[401114722,1767942648384,-623637.24375113,0.00018,2]
[401114724,1767942648393,-290758.83138582,0.00018,2]
[401115214,1767942991093,510.06959885,0.0003,120]
[401115215,1767943078835,-279.4840093,0.00014548,2]
[401115216,1767943078858,-2500.0,0.00014636,2]
[401115217,1767943078880,-250.0,0.00014648,2]
[401115218,1767943078903,-300.0,0.00014661,2]
[401115219,1767943078926,-1542.28210416,0.00014662,2]
[401115220,1767943078948,-200.60442614,0.00014662,2]
[401115221,1767943078971,-169.71864919,0.00014662,2]
[401115222,1767943078993,-169.71864919,0.00014662,2]
[401115223,1767943079016,-404.81624944,0.00014662,2]
[401115224,1767943079041,-9435.72788714,0.00014662,2]
[401115225,1767943079063,-229.16053007,0.00014663,2]
[401115226,1767943079084,-195.94804941,0.00014664,2]
[401115227,1767943079107,-195.0,0.00014699,2]
[401115228,1767943079128,-305.10486684,0.00014699,2]
[401115229,1767943079152,-714.49603605,0.00014699,2]
[401115230,1767943079177,-195.0,0.00014726,2]
[401115231,1767943079203,-202.03636675,0.00014727,2]
[401115232,1767943079228,-151.0,0.00014727,2]
[401115233,1767943079252,-151.0,0.00014727,2]
[401115234,1767943079275,-151.0,0.00014727,2]
[401115235,1767943079297,-151.0,0.00014727,2]
[401115236,1767943079320,-151.0,0.00014727,2]
[401115237,1767943079343,-151.0,0.00014727,2]
[401115238,1767943079365,-151.0,0.00014727,2]
[401115239,1767943079389,-151.0,0.00014727,2]
[401115240,1767943079414,-151.0,0.00014727,2]
[401115241,1767943079437,-151.0,0.00014727,2]
[401115242,1767943079462,-151.0,0.00014727,2]
[401115243,1767943079487,-151.0,0.00014727,2]
[401115244,1767943079513,-1200.0,0.00014734,2]
[401115245,1767943079537,-300.0,0.00014734,2]
[401115246,1767943079561,-150.0,0.00014734,2]
[401115247,1767943079586,-3998.41340062,0.00014734,2]
[401115248,1767943079610,-622.4904723,0.00014735,2]
[401115249,1767943079632,-349.98963367,0.00014735,2]
[401115250,1767943079657,-230.16429782,0.00014735,2]
[401115251,1767943079683,-323.84437191,0.00014735,2]
[401115253,1767943251998,381.028,0.00030137,120]
[401115254,1767943430807,500.0,0.00030136,120]
[401115255,1767943558211,-371.45757543,0.0001055,2]
[401115256,1767943561401,-300.0,0.00010549,2]
[401115257,1767943561423,-10.10312473,0.0001055,2]
[401115258,1767943565764,-225.5550424,0.0001055,2]
[401115259,1767943567842,-255.0,0.0001055,2]
[401115260,1767943570575,-283.81008221,0.0001055,2]
[401115261,1767943573215,-205.90101924,0.0001055,2]
[401115262,1767943574623,-152.90274,0.0001055,2]
[401115263,1767943578350,-168.55203038,0.0001055,2]
[401115264,1767943580850,-293.25580285,0.0001055,2]
[401115265,1767943582994,-181.83775549,0.0001055,2]
[401115266,1767943585031,-583.05402309,0.0001055,2]
[401115267,1767943586549,-406.03393071,0.0001055,2]
[401115268,1767943589395,-269.03291142,0.0001055,2]
[401115269,1767943591393,-258.65715323,0.0001055,2]
[401115270,1767943593857,-187.54007036,0.00010549,2]
[401115271,1767943595968,-15.30661807,0.00010549,2]
[401115272,1767943595991,-242.18816119,0.00010549,2]
[401115273,1767943597435,-2.80458238,0.00010549,2]
[401115274,1767943597457,-214.15603744,0.00010549,2]
[401115275,1767943599021,-193.22145249,0.00010549,2]
[401115276,1767943601129,-148.65111301,0.00010549,2]
[401115277,1767943601156,-51.44798652,0.00010549,2]
[401115278,1767943602662,-253.42816147,0.00010549,2]
[401115279,1767943604816,-195.12385201,0.00010549,2]
[401115280,1767943604849,-161.61997633,0.00010549,2]
[401115281,1767943606152,-252.88906652,0.00010549,2]
[401115282,1767943608253,-85.49095715,0.00010549,2]
[401115283,1767943608289,-164.50904285,0.00010549,2]
[401115284,1767943610069,-299.90090047,0.00010549,2]
[401115285,1767943611183,-35.59005668,0.00010549,2]
[401115286,1767943611210,-428.35904285,0.00010549,2]
[401115287,1767943613831,-71.64095715,0.00010549,2]
[401115288,1767943613859,-232.27474938,0.00010549,2]
[401115289,1767943615829,-221.1910972,0.00010549,2]
[401115290,1767943617112,-46.53415342,0.00010549,2]
[401115291,1767943617138,-140.99925308,0.00010549,2]
[401115292,1767943617946,-246.79437214,0.00010549,2]
[401115293,1767943619993,-112.20637478,0.00010549,2]
[401115294,1767943620020,-64.79383639,0.00010549,2]
[401115295,1767943622159,-163.53488248,0.00010549,2]
[401115296,1767943624707,-150.0,0.00010548,2]
[401115297,1767943624735,-83.5871163,0.00010549,2]
[401115298,1767943626680,-188.08416483,0.00010549,2]
[401115299,1767943626708,-7.60830088,0.00010549,2]
[401115300,1767943628234,-345.24356056,0.00010549,2]
[401115301,1767943631503,-147.14813856,0.00010549,2]
[401115302,1767943631529,-133.8671798,0.00010549,2]
[401115303,1767943634875,-200.0,0.00010549,2]
[401115304,1767943637027,-166.1328202,0.00010549,2]
[401115305,1767943637055,-22.7967228,0.00010549,2]
[401115306,1767943638166,-294.3386898,0.00010549,2]
[401115307,1767943642586,-166.66,0.00010549,2]
[401115308,1767943645756,-16.2045874,0.00010549,2]
[401115309,1767943645785,-359.03772668,0.00010549,2]
[401115310,1767943647628,-140.96227332,0.00010549,2]
[401115311,1767943647656,-35.10999932,0.00010549,2]
[401115312,1767943651495,-254.27327489,0.00010549,2]
[401115313,1767943654979,-155.62838882,0.00010549,2]
[401115314,1767943656416,-54.98833697,0.00010549,2]
[401115315,1767943656444,-127.14205829,0.00010549,2]
[401115316,1767943658477,-260.88983182,0.00010549,2]
[401115317,1767943660587,-111.96810989,0.00010549,2]
[401115318,1767943660615,-271.52471324,0.00010549,2]
[401115319,1767943664818,-228.47528676,0.00010549,2]
[401115320,1767943664843,-14.44442563,0.00010549,2]
[401115321,1767943666733,-250.0,0.00010549,2]
[401115322,1767943669486,-235.55557437,0.00010549,2]
[401115323,1767943669513,-14.44442563,0.00010549,2]
[401115324,1767943672140,-332.91012916,0.00010549,2]
[401115325,1767943674684,-152.64544521,0.00010549,2]
[401115326,1767943674712,-314.41869772,0.00010549,2]
[401115327,1767943674742,-151.91714626,0.00010549,2]
[401115328,1767943677943,-335.33874534,0.00010549,2]
[401115329,1767943681582,-12.7441084,0.00010549,2]
[401115330,1767943681610,-439.56437238,0.00010549,2]
[401115331,1767943682811,-265.46135553,0.00010548,2]
[401115332,1767943684860,-34.53864447,0.00010548,2]
[401115333,1767943684885,-60.43562762,0.00010549,2]
[401115334,1767943684911,-68.45711158,0.00010549,2]
[401115335,1767943686435,-431.54288842,0.00010549,2]
[401115336,1767943686462,-74.96732797,0.00010549,2]
[401115338,1767943688459,-187.20415455,0.00010549,2]
[401115340,1767943690065,-218.10019838,0.00010549,2]
[401115341,1767943691522,-19.7283191,0.00010549,2]
[401115342,1767943691549,-280.2716809,0.00010549,2]
[401115343,1767943696099,-187.0,0.00010548,2]
[401115344,1767943696127,-129.66,0.00010549,2]
[401115346,1767943699699,-90.0683191,0.00010549,2]
[401115347,1767943699724,-74.46126232,0.00010549,2]
[401115348,1767943701902,-206.13,0.00010549,2]
[401115349,1767943705532,-119.70543491,0.00010549,2]
[401115350,1767943705558,-96.34098322,0.00010549,2]
[401115351,1767943708593,-303.21339626,0.00010496,2]
[401115352,1767943711173,-210.59051887,0.00010496,2]
[401115354,1767943714296,-200.0,0.00010496,2]
[401115355,1767943715993,-119.88404787,0.00010496,2]
[401115356,1767943716021,-64.77402525,0.00010549,2]
[401115357,1767943716046,-38.58425968,0.00010549,2]
[401115358,1767943718554,-197.662822,0.00010549,2]
[401115359,1767943720038,-263.75291832,0.00010549,2]
[401115360,1767943720064,-114.22626462,0.00010549,2]
[401115361,1767943721499,-357.08028761,0.00010549,2]
[401115362,1767943723012,-28.69344777,0.00010549,2]
[401115363,1767943723036,-296.29676817,0.00010549,2]
[401115364,1767943725212,-206.2877954,0.00010549,2]
[401115365,1767943725234,-235.92494133,0.0001055,2]
[401115366,1767943726624,-232.67783146,0.0001055,2]
[401115367,1767943729164,-174.49736747,0.0001055,2]
[401115368,1767943731150,-430.8238955,0.0001055,2]
[401115369,1767943733824,-160.3090297,0.0001055,2]
[401115370,1767943736659,-200.0,0.0001055,2]
[401115371,1767943739058,-420.67651575,0.0001055,2]
[401115372,1767943742547,-216.42967347,0.0001055,2]
[401115373,1767943745053,-302.25999983,0.0001055,2]
[401115374,1767943747629,-296.53313902,0.0001055,2]
[401115378,1767943750166,-286.28269951,0.0001055,2]
[401115379,1767943756521,-543.1511784,0.0001055,2]
[401115380,1767943760111,-226.05225167,0.0001055,2]
[401115381,1767943762169,-181.83775549,0.0001055,2]
[401115382,1767943764287,-294.72096578,0.0001055,2]
[401115383,1767943765758,-188.86471918,0.0001055,2]
[401115384,1767943771467,-263.2098759,0.0001055,2]
[401115385,1767943773485,-250.0,0.0001055,2]
[401115386,1767943776782,-299.4769934,0.0001055,2]
[401115387,1767943779308,-192.53867758,0.0001055,2]
[401115388,1767943780788,-180.49618711,0.0001055,2]
[401115389,1767943782954,-397.82381289,0.0001055,2]
[401115390,1767943785412,-340.26343159,0.0001055,2]
[401115391,1767943786888,-300.0,0.00010497,2]
[401115392,1767943790518,-245.43487825,0.00010497,2]
[401115393,1767943793149,-300.0,0.00010497,2]
[401115394,1767943795297,-325.52564244,0.00010497,2]
[401115395,1767943797376,-202.37576797,0.00010497,2]
[401115396,1767943799243,-222.18749106,0.00010497,2]
[401115397,1767943801831,-240.80546981,0.00010497,2]
[401115398,1767943806031,-60.37198947,0.00010497,2]
[401115399,1767943806054,-239.62801053,0.00010549,2]
[401115400,1767943808267,-236.0,0.00010497,2]
[401115401,1767943808302,-60.37198947,0.00010549,2]
[401115402,1767943808336,-53.25106309,0.00010549,2]
[401115409,1767943831448,-246.74893691,0.00010549,2]
[401115410,1767943831458,-150.0,0.00010549,2]
[401115411,1767943831468,-388.96701693,0.00010549,2]
[401115412,1767943831477,-4713.07850858,0.0001055,2]
[401115413,1767943831490,-12070.34750569,0.0001055,2]
[401115414,1767943831505,-518.0,0.0001055,2]
[401115415,1767943831517,-322.59321388,0.0001055,2]
[401115416,1767943831529,-501.01040161,0.0001055,2]
[401115417,1767943831540,-5978.33274471,0.0001055,2]
[401115418,1767943831556,-3140.35799868,0.0001055,2]
[401115419,1767943831568,-1028.25764269,0.0001055,2]
[401115420,1767943831579,-1190.51079332,0.0001055,2]
[401115421,1767943831605,-1957.15258626,0.0001055,2]
[401115422,1767943831616,-392.63145521,0.0001055,2]
[401115423,1767943831628,-906.816,0.0001055,2]
[401115424,1767943831639,-1975.34666119,0.0001055,2]
[401115425,1767943831667,-1398.98959839,0.0001055,2]
[401115426,1767943831680,-11367.31893508,0.0001055,2]
[401115427,1767943831733,-260.03248731,0.0001055,2]
[401115434,1767943837557,-8442.14816434,0.0001055,2]
[401115435,1767943837569,-3671.06059036,0.0001055,2]
[401115436,1767943837580,-542.46609112,0.0001055,2]
[401115437,1767943837592,-68337.20552738,0.0001055,2]
[401115438,1767943837603,-200.0,0.0001055,2]
[401115439,1767943837612,-200.0,0.00010655,2]
[401115440,1767943837622,-200.0,0.00010762,2]
[401115441,1767943837631,-200.0,0.0001087,2]
[401115442,1767943837640,-200.0,0.00010978,2]
[401115443,1767943837650,-279.4840093,0.00011471,2]
[401115444,1767943837659,-255.0,0.00011572,2]
[401115445,1767943837668,-250.0,0.00011585,2]
[401115446,1767943837678,-250.0,0.00011604,2]
[401115447,1767943837687,-195.0,0.00011604,2]
[401115448,1767943837697,-250.0,0.00011604,2]
[401115449,1767943837706,-242.91971239,0.00011604,2]
[401115450,1767943837715,-195.0,0.00011605,2]
[401115451,1767943837725,-388.66,0.00011605,2]
[401115452,1767943837736,-300.0,0.00011605,2]
[401115453,1767943837747,-433.0,0.0001269,2]
[401115454,1767943837757,-166.66,0.0001368,2]
[401115455,1767943837768,-300.0,0.00013824,2]
[401115456,1767943837779,-2500.0,0.00013824,2]
[401115457,1767943837790,-736.0,0.00013925,2]
[401115458,1767943837799,-244.85,0.00013956,2]
[401115459,1767943837810,-500.0,0.00013963,2]
[401115460,1767943837820,-166.66,0.00013968,2]
[401115461,1767943837830,-165.13454046,0.00014,2]
[401115462,1767943837841,-216.31417736,0.00014034,2]
[401115463,1767943837851,-2500.0,0.00014034,2]
[401115464,1767943837860,-2500.0,0.00014034,2]
[401115465,1767943837871,-1500.0,0.0001404,2]
[401115466,1767943837880,-166.66,0.00014256,2]
[401115476,1767943838212,-8492.15509848,0.00014536,2]
[401115480,1767943838240,-166.66,0.00014544,2]
[401115482,1767943838249,-2500.0,0.00014636,2]
[401115483,1767943838259,-195.56140301,0.00014641,2]
[401115485,1767943838268,-2477.44235709,0.00014662,2]
[401115487,1767943838278,-235.01688217,0.00014727,2]
[401115489,1767943838287,-1153.32,0.00014735,2]
[401115491,1767943838297,-500.0,0.00014735,2]
[401115493,1767943838306,-500.0,0.00014735,2]
[401115495,1767943838315,-500.0,0.00014735,2]
[401115497,1767943838324,-500.0,0.00014735,2]
[401115499,1767943838333,-500.0,0.00014735,2]
[401115501,1767943838343,-968.76,0.00014735,2]
[401115503,1767943838352,-500.0,0.00014735,2]
[401115505,1767943838361,-500.0,0.00014735,2]
[401115507,1767943838370,-167.52941689,0.00014735,2]
[401115509,1767943838379,-500.0,0.00014735,2]
[401115511,1767943838389,-500.0,0.00014735,2]
[401115513,1767943838398,-500.0,0.00014735,2]
[401115515,1767943838408,-500.0,0.00014735,2]
[401115517,1767943838418,-508.37435903,0.00014735,2]
[401115519,1767943838427,-163.25361609,0.00014735,2]
[401115521,1767943838436,-224.54955582,0.00014763,2]
[401115523,1767943838446,-501.13930281,0.00014763,2]
[401115525,1767943838455,-500.0,0.00014763,2]
[401115527,1767943838464,-500.0,0.00014763,2]
[401115529,1767943838473,-500.0,0.00014763,2]
[401115531,1767943838483,-500.0,0.00014763,2]
[401115533,1767943838491,-511.23980469,0.00014763,2]
[401115535,1767943838500,-500.48035711,0.00014763,2]
[401115537,1767943838510,-501.02521969,0.00014763,2]
[401115539,1767943838519,-500.0,0.00014763,2]
[401115541,1767943838528,-500.79774172,0.00014763,2]
[401115543,1767943838538,-500.0,0.00014763,2]
[401115545,1767943838547,-500.0,0.00014763,2]
[401115547,1767943838556,-500.0,0.00014763,2]
[401115549,1767943838565,-500.0,0.00014763,2]
[401115551,1767943838574,-500.0,0.00014763,2]
[401115553,1767943838584,-503.2370208,0.00014763,2]
[401115555,1767943838593,-500.0,0.00014763,2]
[401115557,1767943838603,-166.66,0.00014832,2]
[401115559,1767943838612,-33584.3474,0.00014836,2]
[401115561,1767943838621,-1000.0,0.00014836,2]
[401115563,1767943838631,-8492.15509842,0.0001491,2]
[401115565,1767943838640,-2231.94498187,0.00014999,2]
[401115567,1767943838649,-2045.55280214,0.00015,2]
[401115569,1767943838659,-1209.0686268,0.00015,2]
[401115571,1767943838668,-6420.64821318,0.00015,2]
[401115573,1767943838678,-1153.32,0.00015009,2]
[401115574,1767943838687,-2477.442357,0.00015022,2]
[401115577,1767943838697,-300.0,0.00015048,2]
[401115578,1767943838707,-2500.0,0.00015048,2]
[401115580,1767943838717,-166.66,0.0001512,2]
[401115582,1767943838726,-195.56140297,0.00015184,2]
[401115584,1767943838735,-1252.0,0.00015275,2]
[401115586,1767943838744,-1153.32,0.00015283,2]
[401115588,1767943838753,-8492.15509842,0.00015284,2]
[401115590,1767943838762,-1000.0,0.0001531,2]
[401115592,1767943838771,-1000.0,0.0001531,2]
[401115594,1767943838781,-1000.0,0.0001531,2]
[401115596,1767943838790,-504.95792057,0.0001531,2]
[401115598,1767943838799,-1000.0,0.0001531,2]
[401115600,1767943838809,-1000.0,0.0001531,2]
[401115602,1767943838818,-1000.0,0.0001531,2]
[401115604,1767943838827,-549.42963918,0.0001531,2]
[401115606,1767943838837,-1000.0,0.0001531,2]
[401115608,1767943838846,-572.03852483,0.0001531,2]
[401115610,1767943838855,-2477.442357,0.00015382,2]
[401115612,1767943838864,-151.0,0.00015491,2]
[401115614,1767943838874,-151.0,0.00015491,2]
[401115616,1767943838883,-151.0,0.00015505,2]
[401115618,1767943838892,-151.0,0.00015505,2]
[401115620,1767943838902,-1153.32,0.00015557,2]
[401115622,1767943838911,-8492.15509842,0.00015657,2]
[401115624,1767943838920,-195.56140297,0.00015727,2]
[401115626,1767943838929,-362.13239118,0.00015741,2]
[401115628,1767943838942,-434.48257419,0.00015741,2]
[401115631,1767943838954,-1401.48181353,0.00015741,2]
[401115694,1767943839767,-279.3455781,0.00015741,2]
[401115697,1767943839777,-1000.0,0.00015764,2]
[401115699,1767943839786,-1153.32,0.00015831,2]
[401115701,1767943839795,-1500.0,0.00015858,2]
[401115703,1767943839804,-1500.0,0.00015858,2]
[401115705,1767943839814,-196.89594249,0.00015858,2]
[401115707,1767943839823,-1500.0,0.00015858,2]
[401115709,1767943839833,-1500.0,0.00015858,2]
[401115711,1767943839842,-1500.0,0.00015858,2]
[401115713,1767943839851,-1500.0,0.00015858,2]
[401115715,1767943839861,-425.33,0.00015934,2]
[401115716,1767943839870,-169.71864919,0.00015998,2]
[401115719,1767943839882,-8715.62468586,0.00016,2]
[401115721,1767943839903,-200.447904,0.00016,2]
[401115723,1767943839913,-8492.15509842,0.00016031,2]
[401115725,1767943839922,-2477.442357,0.00016101,2]
[401115727,1767943839931,-1153.32,0.00016105,2]
[401115729,1767943839941,-999.0,0.00016179,3]
[401115731,1767943839954,-8535.15834166,0.000162,5]
[401115733,1767943839970,-195.56140297,0.00016271,2]
[401115735,1767943839984,-200.0,0.0001634,2]
[401115737,1767943839993,-1153.32,0.00016379,2]
[401115739,1767943840002,-8492.15509842,0.00016405,2]
[401115741,1767943840011,-2000.0,0.00016406,2]
[401115743,1767943840023,-1954.11864465,0.00016406,2]
[401115745,1767943840032,-2000.0,0.00016406,2]
[401115748,1767943840043,-248.72662165,0.00016406,2]
[401115749,1767943840052,-2000.0,0.00016406,2]
[401115751,1767943840061,-1740.72622567,0.00016406,2]
[401115754,1767943840071,-507.0,0.00016411,2]
[401115756,1767943840081,-500.0,0.00016438,2]
[401115758,1767943840090,-500.0,0.00016438,2]
[401115760,1767943840101,-500.0,0.00016438,2]
[401115762,1767943840114,-500.0,0.00016438,2]
[401115764,1767943840124,-1000.0,0.00016438,2]
[401115766,1767943840134,-1000.0,0.00016438,2]
[401115768,1767943840144,-1000.0,0.00016438,2]
[401115770,1767943840163,-500.0,0.00016438,2]
[401115772,1767943840178,-500.0,0.00016438,2]
[401115774,1767943840188,-500.0,0.00016438,2]
[401115775,1767943840198,-500.0,0.00016438,2]
[401115776,1767943840208,-511.85948094,0.00016438,2]
[401115777,1767943840218,-207.79285348,0.00016438,2]
[401115778,1767943840228,-166.67,0.00016438,2]
[401115779,1767943840238,-2477.442357,0.00016461,2]
[401115780,1767943840248,-2296.1,0.00016598,2]
[401115781,1767943840257,-359.61007335,0.000166,2]
[401115782,1767943840267,-1153.32,0.00016653,2]
[401115784,1767943840277,-158.57,0.00016712,2]
[401115785,1767943840287,-2296.1,0.00016725,2]
[401115786,1767943840296,-469.60768673,0.00016751,2]
[401115787,1767943840306,-1681.0,0.00016762,2]
[401115788,1767943840315,-16740.34959736,0.00016777,2]
[401115789,1767943840325,-8492.15509842,0.00016779,2]
[401115790,1767943840338,-195.56140297,0.00016814,2]
[401115791,1767943840348,-2477.442357,0.00016821,2]
[401115792,1767943840358,-2296.1,0.00016853,2]
[401115793,1767943840367,-150.0,0.00016874,2]
[401115794,1767943840376,-8949.74,0.00016922,2]
[401115795,1767943840386,-1153.32,0.00016927,2]
[401115796,1767943840396,-2500.0,0.00016954,2]
[401115797,1767943840406,-2500.0,0.00016954,2]
[401115798,1767943840415,-500.0,0.00016954,2]
[401115799,1767943840424,-2296.1,0.0001698,2]
[401115800,1767943840434,-150.0,0.0001698,2]
[401115801,1767943840443,-56347.19120658,0.00016986,2]
[401115802,1767943840456,-725.91164319,0.00016986,2]
[401115803,1767943840486,-369.0,0.00016986,2]
[401115804,1767943840497,-2335.93824332,0.00016986,2]
[401115805,1767943840512,-612781.67890691,0.00016986,2]
[401115806,1767943840521,-2000.61975215,0.00016989,2]
[401115807,1767943840534,-250.0,0.00017,2]
[401115808,1767943840543,-160.0,0.00017,2]
[401115809,1767943840553,-482.82,0.00017041,2]
[401115810,1767943840563,-482.82,0.00017041,2]
[401115811,1767943840572,-661.58,0.00017041,2]
[401115812,1767943840581,-482.82,0.00017041,2]
[401115813,1767943840591,-482.82,0.00017041,2]
[401115814,1767943840601,-661.58,0.00017041,2]
[401115815,1767943840611,-482.82,0.00017041,2]
[401115816,1767943840621,-661.58,0.00017041,2]
[401115817,1767943840631,-908.88,0.00017041,2]
[401115818,1767943840640,-661.58,0.00017041,2]
[401115819,1767943840651,-661.58,0.00017041,2]
[401115820,1767943840660,-578.20924308,0.00017098,2]
[401115821,1767943840671,-620.0,0.00017098,2]
[401115822,1767943840683,-322.6107,0.00017098,2]
[401115823,1767943840692,-303.65393209,0.00017098,2]
[401115824,1767943840702,-553.64373807,0.00017098,2]
[401115825,1767943840714,-151.0,0.00017098,2]
[401115826,1767943840727,-2296.1,0.00017108,2]